Cogmind - Beta 14 @@@ ROGUE MODE // 2024.10.13 @ 11:25:10 Player: Tereza Result: Destroyed by BL-6J3(R) with Subdweller Machine Gun Performance ------------- Evolutions (0) 0 Regions Visited (3) 600 Robots Destroyed (18) 90 Value Destroyed (508) 508 Prototype IDs (0) 0 Alien Tech Used (0) 0 Bonus (0) 0 TOTAL SCORE: 1198 Bonus ------- None Cogmind --------- Core Integrity 0/250 Matter 260/300 Energy 98/100 System Corruption 0% Temperature Cool (0) Movement Core (50) Location -10/Subcaves Parts ------- > --- POWER (1) -------- (None) > --- PROPULSION (2) --- (None) > --- UTILITY (2) ------ (None) > --- WEAPON (2) ------- (None) > --- INVENTORY (5) ---- Subdweller Power Source Hacking Suite Scrap Shield Fragment (49) Scrap Shield Fragment (47) Scrap Shield Fragment (47) Peak State ------------ > --- POWER ------------ Subdweller Power Source > --- PROPULSION ------- Subdweller Monowheel > --- UTILITY ---------- Disposable Heat Sink Small Storage Unit > --- WEAPON ----------- Riot Gun Subdweller Machine Gun > --- INVENTORY -------- Subdweller Power Source Hacking Suite Grenade Launcher Mining Laser Scrap Shield Fragment Scrap Shield Fragment Scrap Shield Fragment Scrap Shield Fragment [Rating: 13] Favorites ----------- Power Light Ion Engine Engine Light Ion Engine Propulsion Light Treads Treads Light Treads Leg Aluminum Leg Wheel Subdweller Monowheel Utility Small Storage Unit Device Seismic Detector Storage Small Storage Unit Protection Light Armor Plating Weapon Light Assault Rifle Energy Gun Riot Gun Ballistic Gun Light Assault Rifle Ballistic Cannon Light Cannon Launcher Grenade Launcher Build | -11 -10 -10 -10 ------- Run | Yrd Mat Min Sub Slots Evolved . | . . . . Power . | . . . . Propulsion . | . . . . Utility . | . . . . Weapon . | . . . . Parts Attached 30 | 5 6 1 18 Power 5 | 1 . . 4 Engine 5 | 1 . . 4 Core . | . . . . Reactor . | . . . . Propulsion 6 | 2 . 1 3 Treads 2 | 2 . . . Leg 2 | . . 1 1 Wheel 2 | . . . 2 Hover . | . . . . Flight . | . . . . Utility 8 | 1 3 . 4 Device 6 | . 3 . 3 Storage 1 | 1 . . . Processor . | . . . . Hackware . | . . . . Protection 1 | . . . 1 Artifact . | . . . . Weapon 11 | 1 3 . 7 Energy Gun 1 | . . . 1 Energy Cannon . | . . . . Ballistic Gun 6 | 1 2 . 3 Ballistic Cannon 2 | . 1 . 1 Launcher 2 | . . . 2 Special Weapon . | . . . . Impact Weapon . | . . . . Slashing Weapon . | . . . . Piercing Weapon . | . . . . Special Melee Weapon . | . . . . Unidentified Prototypes . | . . . . Parts Lost 14 | . . 1 13 Power 2 | . . . 2 Propulsion 5 | . . 1 4 Utility 2 | . . . 2 Weapon 5 | . . . 5 Highest Loss Streak 5 | . . 1 5 To Critical Strikes . | . . . . Average Slot Usage (%) 80 | . 95 97 67 Engine 9 | . 14 14 5 Treads 10 | . 28 15 . Leg 4 | . . 10 4 Wheel 2 | . . . 3 Device 11 | . 11 14 10 Storage 13 | . 14 14 13 Energy Gun 2 | . . . 5 Ballistic Gun 14 | . 18 14 13 Ballistic Cannon 6 | . 8 14 3 Launcher 2 | . . . 4 Peak Build Rating 13 | 5 8 8 13 Average Rating 7 | 4 6 7 7 On Entrance 5 | . 5 8 7 Naked Turns 41 | . . . 41 Heaviest Build 18 | 10 13 13 18 Greatest Support 40 | 40 40 40 20 Greatest Overweight (x) 5 | . . . 5 Average Overweight (x) . | . . . 1 Largest Inventory Capacity 8 | 8 8 8 8 Average Capacity 7 | 7 8 8 7 Most Carried 8 | 7 8 8 8 Average Carried 7 | 5 7 7 7 Final Capacity 8 | 8 8 8 5 Final Carried 8 | 7 8 7 5 Class Distribution -------------------- 100% | Mutant Dominant Class ---------------- Mutant | -10/Materials Mutant | -10/Mines Mutant | -10/Subcaves Resources | -11 -10 -10 -10 ----------- Run | Yrd Mat Min Sub Matter Collected 814 | 193 223 62 336 Remotely . | . . . . Salvage Created 409 | . 237 48 124 Parts 28 | . 20 . 8 Haulers Intercepted . | . . . . Recyclers Shooed . | . . . . Parts Field Recycled . | . . . . Retrieved Matter . | . . . . Parts Self-Destructed 5 | . . . 5 Prevented . | . . . . Kills | -11 -10 -10 -10 ------- Run | Yrd Mat Min Sub Combat Hostiles Destroyed 16 | . 9 2 5 Guns 9 | . 6 1 2 Cannons 4 | . 3 1 . AOE 3 | . . . 3 Classes Destroyed 6 | . 4 . 2 Operator 1 | . 1 . . Watcher 1 | . 1 . . Swarmer 6 | . 6 . . Grunt 5 | . 3 2 . Artisan 1 | . . . 1 Subdweller 5 | . . . 5 Best Kill Streak 3 | . 3 1 2 Combat Bots Only 3 | . 3 1 2 Max Kills in Single Turn 1 | . 1 1 1 Gunslinging . | . . . . Exploded 1 | . . . 1 Melee . | . . . . Uniques/NPCs Destroyed . | . . . . Combat | -11 -10 -10 -10 -------- Run | Yrd Mat Min Sub Hostile Shots Fired 130 | . 41 20 69 Missed 30 | . 6 9 15 Damage Taken 1703 | . 332 141 1230 Core 253 | . 42 34 177 Absorbed by Shields . | . . . . Core Remaining (%) 100 | 100 . . . Volleys Fired 84 | . 31 17 36 Largest 2 | . 2 2 2 Hottest 80 | . 55 55 80 Shots Fired 155 | . 55 34 66 Gun 101 | . 46 17 38 Cannon 46 | . 9 17 20 Launcher 8 | . . . 8 Special . | . . . . Kinetic 143 | . 55 34 54 Thermal . | . . . . Explosive 8 | . . . 8 Electromagnetic 4 | . . . 4 Robot Hit Streak 21 | . 7 5 21 Robot Miss Streak 3 | . 3 3 1 Penetration Max . | . . . . Secondary Targets . | . . . . Shots Hit Robots 103 | . 34 20 49 Core Hits 42 | . 20 5 17 Critical Kills . | . . . . Critical Parts Destroyed 1 | . . 1 . Critical Strikes 1 | . . 1 . Destroy 1 | . . 1 . Melee Attacks . | . . . . Impact . | . . . . Slashing . | . . . . Piercing . | . . . . Sneak Attacks . | . . . . Combat Hostiles . | . . . . Follow-up Attacks . | . . . . Damage Inflicted 1604 | . 396 236 972 Guns 678 | . 301 83 294 Cannons 546 | . 95 153 298 Explosions 380 | . . . 380 Melee . | . . . . Ramming . | . . . . Kinetic 1216 | . 396 236 584 Thermal . | . . . . Explosive 380 | . . . 380 Electromagnetic 8 | . . . 8 Impact . | . . . . Slashing . | . . . . Piercing . | . . . . Highest Corruption . | . . . . Average Corruption . | . . . . Corruption Purged . | . . . . Corruption Blocked . | . . . . Overload Shots . | . . . . Overflow Damage . | . . . . Projectiles . | . . . . Explosions . | . . . . Melee . | . . . . Knockbacks 5 | . 2 . 3 Impact . | . . . . Kinetic 5 | . 2 . 3 Secondary . | . . . . Self-Inflicted Damage 123 | . . . 123 Shots 5 | . . . 5 Rammed . | . . . . Targets Rammed . | . . . . Kicked . | . . . . Crushed . | . . . . Highest Temperature 48 | . 28 48 . Average Temperature 19 | . 9 26 . Received Heat Transfer 450 | . 102 81 267 Siege Activations . | . . . . Robots Corrupted . | . . . . Combat Hostiles . | . . . . Parts Fried . | . . . . Impact Corruptions . | . . . . Robots Melted . | . . . . Combat Hostiles . | . . . . Parts Melted . | . . . . Heat Transferred . | . . . . Parts Sabotaged . | . . . . Parts Stolen . | . . . . Parts Stripped . | . . . . Power Chain Reactions . | . . . . Alert | -11 -10 -10 -10 ------- Run | Yrd Mat Min Sub Peak Influence 217 | . 217 119 . Initial 49 | . . 49 . Average 97 | . 117 85 . Maximum Alert Level 1 | . 1 . . Low Security (%) 84 | 100 73 100 . Level 1 15 | . 26 . . Level 2 . | . . . . Level 3 . | . . . . Level 4 . | . . . . Level 5 . | . . . . High Security . | . . . . Max Security . | . . . . Squads Dispatched 2 | . 2 . . Investigation . | . . . . Extermination . | . . . . Reinforcement 2 | . 2 . . Assault . | . . . . Garrison . | . . . . Intercept . | . . . . Searches Triggered . | . . . . Construction Impeded . | . . . . Haulers Reinforced . | . . . . Active Scanning Responses . | . . . . Cargo Convoy Interrupts . | . . . . Stealth | -11 -10 -10 -10 --------- Run | Yrd Mat Min Sub Distress Signals . | . . . . Communications Jammed . | . . . . Distress Signals . | . . . . Times Spotted 27 | . 16 3 8 Peak Tracking Total 4 | . 4 2 3 Tactical Retreats 4 | . 2 1 1 Traps | -11 -10 -10 -10 ------- Run | Yrd Mat Min Sub Traps Triggered . | . . . . Indirectly . | . . . . Trap Hack Attempts . | . . . . Triggered . | . . . . Disarmed . | . . . . Reprogrammed . | . . . . Reused . | . . . . Traps Extracted . | . . . . Installed . | . . . . Triggered . | . . . . Machines | -11 -10 -10 -10 ---------- Run | Yrd Mat Min Sub Machines Disabled 2 | . 1 1 . Max in Single Turn 1 | . 1 1 . Machines Repaired . | . . . . Machines Dismantled . | . . . . Machines Sabotaged . | . . . . Overloaded Fab Kills . | . . . . Hacking | -11 -10 -10 -10 --------- Run | Yrd Mat Min Sub Machines Accessed 3 | . 3 . . Terminals 3 | . 3 . . Fabricators . | . . . . Repair Stations . | . . . . Recycling Units . | . . . . Scanalyzers . | . . . . Garrison Access . | . . . . Total Hacks 8 | . 8 . . Successful 5 | . 5 . . Failed 3 | . 3 . . Catastrophic . | . . . . Database Lockouts . | . . . . Manual 5 | . 5 . . Terminals 8 | . 8 . . Fabricators . | . . . . Repair Stations . | . . . . Recycling Units . | . . . . Scanalyzers . | . . . . Garrison Access . | . . . . Terminal Hacks 2 | . 2 . . Alert Level 1 | . 1 . . Hauler Manifests 1 | . 1 . . Fabricator Hacks . | . . . . Repair Station Hacks . | . . . . Recycling Unit Hacks . | . . . . Scanalyzer . | . . . . Garrison Access Hacks . | . . . . Unauthorized Hacks 3 | . 3 . . Terminals 3 | . 3 . . Botnet 3 | . 3 . . Fabricators . | . . . . Repair Stations . | . . . . Recycling Units . | . . . . Scanalyzers . | . . . . Garrison Access . | . . . . Data Cores Recovered . | . . . . Used . | . . . . Hacking Detections 3 | . 3 . . Full Trace Events . | . . . . Feedback Events . | . . . . Feedback Blocked . | . . . . Robot Schematics Acquired . | . . . . Robots Built . | . . . . Authchips . | . . . . Time . | . . . . Total Robot Build Rating . | . . . . Part Schematics Acquired . | . . . . Parts Built . | . . . . Authchips . | . . . . Time . | . . . . Total Part Build Rating . | . . . . Parts Repaired . | . . . . Time . | . . . . Parts Recycled . | . . . . Recycled Matter . | . . . . Retrieved Matter . | . . . . Retrieved Components . | . . . . Parts Scanalyzed . | . . . . Part Schematics Acquired . | . . . . Parts Damaged . | . . . . Bothacking | -11 -10 -10 -10 ------------ Run | Yrd Mat Min Sub Used RIF Installer . | . . . . Robots Hacked . | . . . . Non-combat . | . . . . Combat . | . . . . Robot Hacks Applied . | . . . . Relay Couplers Released . | . . . . Fabnet Peak Effective % . | . . . . Robots Rewired . | . . . . Allies Hacked . | . . . . Hacks Repelled . | . . . . Allies | -11 -10 -10 -10 -------- Run | Yrd Mat Min Sub Total Allies . | . . . . Largest Group . | . . . . Highest-Rated Group . | . . . . Highest-Rated Ally . | . . . . Total Orders . | . . . . Ally Attacks . | . . . . Total Damage . | . . . . Kills . | . . . . Allies Corrupted . | . . . . Allies Melted . | . . . . Intel | -11 -10 -10 -10 ------- Run | Yrd Mat Min Sub Robot Analysis Total . | . . . . Derelict Logs Recovered 2 | . . 1 1 Drone Launches . | . . . . Drone Recoveries . | . . . . Exploration | -11 -10 -10 -10 ------------- Run | Yrd Mat Min Sub Turns Passed 2551 | 90 686 435 1340 Spaces Moved 1322 | 54 352 137 779 Core 378 | 9 . . 369 Treads 541 | 45 352 137 7 Legs 89 | . . . 89 Wheels 314 | . . . 314 Hover . | . . . . Flight . | . . . . Fastest Speed 50 | 50 160 160 50 Average Speed 154 | 141 160 160 152 Slowest Speed 300 | 160 160 160 300 Overloaded Moves . | . . . . Propulsion Burnouts . | . . . . Robots Hopped . | . . . . Cave-ins Triggered . | . . . . Exploration Rate (%) 33 | 4 59 31 40 Regions Visited 3 Branch Regions 2 Pre-discovered Areas . | . . . . Known Exits Taken . | . . . . Unknown Exits Taken 3 | 1 1 1 . Scrap Searched 5 | . . . 5 Spaces Dug . | . . . . Terrain Destroyed 37 | . . . 37 Melee . | . . . . Projectile . | . . . . AOE 37 | . . . 37 Terrain Rammed . | . . . . Walls Destroyed . | . . . . Machines Disabled . | . . . . Actions | -11 -10 -10 -10 --------- Run | Yrd Mat Min Sub Total 1689 | 65 427 322 875 Wait 213 | . 24 168 21 Move 1319 | 53 351 136 779 Hop . | . . . . Pick Up 23 | 7 6 . 10 Fast Attach 14 | 5 4 . 5 Attach 8 | . . 1 7 Detach 1 | . . . 1 Swap 8 | . 2 . 6 Drop 19 | . 9 . 10 Fire 84 | . 31 17 36 Melee . | . . . . Ram . | . . . . Kick . | . . . . Crush . | . . . . Escape Stasis . | . . . . Rewire . | . . . . Trap . | . . . . Miscellaneous . | . . . . Route ------- -11/Scrapyard -10/Materials (discovered 3 exits: [*Mat] / [*Min x2]) -10/Mines -10/Subcaves History --------- Turn | Location | Event 10 | -11/Scrapyard | Discovered new exit (range 14) 91 | -11/Scrapyard | Entered Materials 300 | -10/Materials | Build established: Mutant 333 | -10/Materials | Discovered new exit (range 15) 487 | -10/Materials | Discovered new exit (range 8) 756 | -10/Materials | Discovered new exit (range 8) 777 | -10/Materials | Entered Mines 865 | -10/Mines | Learned 4 Materials zone layouts 1190 | -10/Mines | Discovered new exit (range 5) 1212 | -10/Mines | Entered Subcaves 1255 | -10/Subcaves | Core integrity fell below 50% 1287 | -10/Subcaves | Lost 5 parts (1p2n2w) 1516 | -10/Subcaves | A swath of the cavern ceiling suddenly collapsed 1658 | -10/Subcaves | Disturbed a concealed Subdweller 1726 | -10/Subcaves | Lost 4 parts (1p2n1u) 1918 | -10/Subcaves | Learned Materials stockpile data 1995 | -10/Subcaves | Disturbed a concealed Subdweller 2477 | -10/Subcaves | Ambushed by Subdweller buried in earth 2501 | -10/Subcaves | Core integrity fell below 20% 2552 | -10/Subcaves | Destroyed by BL-6J3(R) with Subdweller Machine Gun Last Messages --------------- Acquired Disposable Heat Sink. Searching scrap... Found Sub. Power Source. Found Sub. Machine Gun. Found 56 Matter. Acquired 20 matter. Acquired Sub. Power Source. Sub. Monowheel shoots sparks and powers down. Dropped Broken Sub. Monowheel. Dropped Sub. Power Source. Acquired Sub. Power Source. Acquired 10 matter. X8-ZGB(R): "SUBHATE!" TH-QMI(u) builds Twisted Machinery. DZ-8AO(R): "ARGHSUB!" Grenade Launcher destroyed. Riot Gun destroyed. Dropped Sml. Storage Unit. Dropped Sub. Machine Gun. BL-6J3(R): "SUBMAD!" Map ----- +----------------------------------------------------+ | ??????????????????##?## # # #?????????? | | ??????????????????# ## ### #?????????? | | ??????????????????# #### # #????????? | | ??????????????????## "" ### # #????????? | | ???????????????????#### # ###????????? | | ??????????????????????# ###??????????? | | ????????????????????###### ## #????????????? | | ????????????????????# #?# ##?# ##????????????? | | ????????????????????# ### ##### ##????????????? | | ????????????????????# ## # # ##???????????? | | ????????????????????# #???????????? | | ???????????????????## ##??????????? | | ???????????????????# #???????? | | ???????????????????# # # #???????? | | ???????????????????# # ## #???????? | | ???????????????????## #?# ### ##???????? | | ????????????????????## #### ##?###???##????????? | | ?????????????????????###### #?????????????????? | | ??????????????????????????# ##?????????????????? | | ??????????????????????????# #??????????????????? | | ????????????????????####??## #??????????????????? | | ????????????????????# ##??# ####???????????????? | | ???????????????????## ##?# ##??????????????? | | ???????????????????# ### ####???????????? | | ??????????????????## ##R ##??????????? | | ??????????????????# @R ##?????????? | | ?????????????????# ###""""## ##????????? | | ?????????????????### "##?##"""#### #????????? | | ???????????????????###????# "#??# #????????? | | ??????????????????????????##"##??## #????????? | | ???????????????????????????###????## #????????? | | ???????????????????????????????????# #????????? | | ??????????????????????????????????? #????????? | | ?????????????????????????????????? #????????? | | ?????????????????????????????????# ????????? | | ?????????????????????????????????# #???????? | | ?????????????????????????????????# ### ##???????? | | ????????????????????????????????? ??? #????????? | | ????????????????????????????????? ???##????????? | | ???????????????????????????????? ?????????????? | | ???????????????????????????????? ?????????????? | | ??????????????????????????????? ## ?????????????? | | ??????????????????????????????? ?? ?????????????? | | ??????????????????????????????????? ?????????????? | | ?????????????????????????????????????????????????? | | ?????????????????????????????????????????????????? | | ?????????????????????????????????????????????????? | | ?????????????????????????????????????????????????? | | ?????????????????????????????????????????????????? | | ?????????????????????????????????????????????????? | +----------------------------------------------------+ Best States ------------- Heat Dissipation 35 Coolant Potential 50 Energy Generation 15 Energy Capacity 250 Matter Stores 300 Matter Capacity 300 Sight Range 21 Terrain Scan Density 10 Armor Coverage 150 Evasion (%) 50 Recoil Reduction 2 Item Schematics ----------------- None Robot Schematics ------------------ None Fabricated ------------ Nothing Alien Tech Used ----------------- None Achievements -------------- None Challenges ------------ None Game ------ Seed RagnarokDirtyClaw Manual? 0 Play Time 00:14:26 Cumulative 68.3 hours Start 2024.10.13 @ 11:11:13 End 2024.10.13 @ 11:25:10 Sessions 1 Manual Loads 0 Difficulty Rogue Special Mode None Game No. 79 Rogue 79 Adventurer 0 Explorer 0 Win Type - Total 0 Types 0/0/0/0/0/0/0/0/0 Lore% 46 Gallery% 42 Achievement% 35 Wizard Run 0 Options --------- Layout 1 ASCII 0 Keyboard 1 Movement Numpad Keybinds 0 Fullscreen 1 Font 24/Smallcaps Map View 50x35 Zoom Use 0% Tactical HUD 0 Map Filters NONE Filters NONE Steam 1 RUN: 41165976-b2d0-4d83-9b7d-b88d1f2a2375